[Event "*** SCC Grand Prix: Titled Tuesday Blitz"]
[Site "Chess.com"]
[Date "2020.07.14"]
[Round "5"]
[White "BillieKimbah"]
[Black "DortmundCity"]
[Result "1-0"]
[WhiteElo "2904"]
[BlackElo "2641"]
[TimeControl "180+1"]
[EndTime "10:58:16 PDT"]
[Termination "BillieKimbah won by resignation"]

1. d4 {[%clk 0:03:00.8]} 1... d5 {[%clk 0:02:57.2]} 2. Nf3 {[%clk 0:03:00.7]}
2... c6 {[%clk 0:02:56.7]} 3. Bf4 {[%clk 0:02:58.2]} 3... Nf6 {[%clk 0:02:54.8]}
4. e3 {[%clk 0:02:57.8]} 4... Bg4 {[%clk 0:02:50.2]} 5. Nbd2 {[%clk 0:02:54.3]}
5... Nbd7 {[%clk 0:02:49.6]} 6. h3 {[%clk 0:02:50]} 6... Bh5 {[%clk 0:02:46.7]}
7. g4 {[%clk 0:02:39.4]} 7... Bg6 {[%clk 0:02:46.6]} 8. Ne5 {[%clk 0:02:39.7]}
8... Nxe5 {[%clk 0:02:39.3]} 9. dxe5 {[%clk 0:02:21.8]} 9... Nd7 {[%clk
0:02:38.6]} 10. Bd3 {[%clk 0:01:51.2]} 10... e6 {[%clk 0:02:33.6]} 11. h4 {[%clk
0:01:49.2]} 11... Bxd3 {[%clk 0:02:08.4]} 12. cxd3 {[%clk 0:01:50.1]} 12... Qb6
{[%clk 0:02:08.4]} 13. Qc2 {[%clk 0:01:47.3]} 13... Qc5 {[%clk 0:01:59.6]} 14.
Qxc5 {[%clk 0:01:41.8]} 14... Nxc5 {[%clk 0:01:59.5]} 15. Ke2 {[%clk 0:01:41.9]}
15... h5 {[%clk 0:01:51.1]} 16. Rag1 {[%clk 0:01:36.8]} 16... hxg4 {[%clk
0:01:47.9]} 17. Rxg4 {[%clk 0:01:37.7]} 17... Rh5 {[%clk 0:01:36.4]} 18. Nf1
{[%clk 0:01:22.6]} 18... Na4 {[%clk 0:01:31.7]} 19. Ng3 {[%clk 0:01:20.7]} 19...
Rh7 {[%clk 0:01:31.1]} 20. Kd2 {[%clk 0:01:05.8]} 20... Kd7 {[%clk 0:01:18.2]}
21. Bg5 {[%clk 0:01:03.4]} 21... b5 {[%clk 0:01:17.3]} 22. Kc2 {[%clk
0:01:00.4]} 22... Nb6 {[%clk 0:01:11.7]} 23. Rf4 {[%clk 0:00:59.4]} 23... Ke8
{[%clk 0:00:57.3]} 24. h5 {[%clk 0:00:53.7]} 24... a5 {[%clk 0:00:55.5]} 25. Rg4
{[%clk 0:00:50.1]} 25... c5 {[%clk 0:00:48.5]} 26. h6 {[%clk 0:00:50.1]} 26...
gxh6 {[%clk 0:00:43.6]} 27. Nh5 {[%clk 0:00:45.6]} 27... Be7 {[%clk 0:00:30.3]}
28. Nf6+ {[%clk 0:00:33.2]} 28... Bxf6 {[%clk 0:00:29.6]} 29. Bxf6 {[%clk
0:00:34.1]} 29... Kd7 {[%clk 0:00:27.9]} 30. Kd2 {[%clk 0:00:26.7]} 30... b4
{[%clk 0:00:22.6]} 31. Rgh4 {[%clk 0:00:26.2]} 31... Kc6 {[%clk 0:00:19.6]} 32.
Rxh6 {[%clk 0:00:25.9]} 32... Rxh6 {[%clk 0:00:20]} 33. Rxh6 {[%clk 0:00:26.8]}
33... Kb5 {[%clk 0:00:20.3]} 34. Rh7 {[%clk 0:00:25]} 34... Ra7 {[%clk
0:00:19.6]} 35. Rh8 {[%clk 0:00:25.4]} 35... Rb7 {[%clk 0:00:19.5]} 36. Rf8
{[%clk 0:00:22.1]} 36... c4 {[%clk 0:00:18.6]} 37. f4 {[%clk 0:00:18.5]} 37...
Na4 {[%clk 0:00:17.5]} 38. dxc4+ {[%clk 0:00:18.1]} 38... dxc4 {[%clk
0:00:16.7]} 39. Kc1 {[%clk 0:00:18.7]} 39... Nc5 {[%clk 0:00:16.2]} 40. Kc2
{[%clk 0:00:17.9]} 40... a4 {[%clk 0:00:16.5]} 41. Rd8 {[%clk 0:00:14.4]} 41...
b3+ {[%clk 0:00:16.3]} 42. axb3 {[%clk 0:00:14.6]} 42... cxb3+ {[%clk
0:00:15.6]} 43. Kb1 {[%clk 0:00:13.8]} 43... Ne4 {[%clk 0:00:15.1]} 44. Rd4
{[%clk 0:00:13.4]} 44... Nc5 {[%clk 0:00:13.3]} 45. Kc1 {[%clk 0:00:05.6]} 45...
Rd7 {[%clk 0:00:13.4]} 46. Kd2 {[%clk 0:00:05.1]} 46... Ne4+ {[%clk 0:00:11.6]}
47. Kd3 {[%clk 0:00:05]} 47... Rxd4+ {[%clk 0:00:11.1]} 48. exd4 {[%clk
0:00:05.9]} 48... Ng3 {[%clk 0:00:08.2]} 49. Ke3 {[%clk 0:00:06.8]} 49... Nf5+
{[%clk 0:00:08.4]} 50. Kd3 {[%clk 0:00:07.7]} 50... Kc6 {[%clk 0:00:08.7]} 51.
Bd8 {[%clk 0:00:06.4]} 51... Kd5 {[%clk 0:00:08.5]} 52. Bb6 {[%clk 0:00:06.6]}
52... Ng3 {[%clk 0:00:08.9]} 53. Ba7 {[%clk 0:00:06.5]} 53... Ne4 {[%clk
0:00:09.1]} 54. Bb6 {[%clk 0:00:06.8]} 54... f5 {[%clk 0:00:09.1]} 55. exf6
{[%clk 0:00:06.7]} 55... Nxf6 {[%clk 0:00:09.2]} 56. Ba7 {[%clk 0:00:07.2]}
56... Nh5 {[%clk 0:00:09.5]} 57. Bb8 {[%clk 0:00:06.9]} 57... Ng3 {[%clk
0:00:09.4]} 58. Ba7 {[%clk 0:00:06.7]} 58... Nf5 {[%clk 0:00:08.9]} 59. Bb6
{[%clk 0:00:06.3]} 59... Ne7 {[%clk 0:00:08.7]} 60. Kc3 {[%clk 0:00:05.5]} 60...
Nc6 {[%clk 0:00:08.6]} 61. Bc5 {[%clk 0:00:05.2]} 61... Ke4 {[%clk 0:00:08.5]}
62. Kc4 {[%clk 0:00:03.5]} 62... Kxf4 {[%clk 0:00:08.8]} 63. Kb5 {[%clk
0:00:03.3]} 63... Nd8 {[%clk 0:00:06.2]} 64. Kxa4 {[%clk 0:00:03.6]} 64... Ke4
{[%clk 0:00:06.6]} 65. Kxb3 {[%clk 0:00:03.9]} 65... Nc6 {[%clk 0:00:07.1]} 66.
Kc4 {[%clk 0:00:03.9]} 66... Nd8 {[%clk 0:00:05.9]} 67. b4 {[%clk 0:00:03.9]}
67... Kf5 {[%clk 0:00:04.6]} 68. b5 {[%clk 0:00:04.4]} 68... Kf6 {[%clk
0:00:05]} 69. b6 {[%clk 0:00:04.9]} 69... Kf7 {[%clk 0:00:05.2]} 70. Bd6 {[%clk
0:00:05.1]} 70... Ke8 {[%clk 0:00:05.2]} 71. Bc7 {[%clk 0:00:05.2]} 71... Nb7
{[%clk 0:00:05.7]} 72. Kb5 {[%clk 0:00:05.3]} 72... Kd7 {[%clk 0:00:06.1]} 73.
Be5 {[%clk 0:00:06.1]} 73... Kc8 {[%clk 0:00:05]} 74. Kc6 {[%clk 0:00:06.2]}
74... Nd8+ {[%clk 0:00:05.3]} 75. Kc5 {[%clk 0:00:05.3]} 75... Kd7 {[%clk
0:00:05.1]} 76. Bc7 {[%clk 0:00:05.3]} 76... Nb7+ {[%clk 0:00:05.1]} 77. Kb5
{[%clk 0:00:05.9]} 77... Kc8 {[%clk 0:00:04.7]} 78. Kc6 {[%clk 0:00:06.4]} 78...
Na5+ {[%clk 0:00:05.1]} 79. Kd6 {[%clk 0:00:07]} 79... Kb7 {[%clk 0:00:04.2]}
80. Kxe6 {[%clk 0:00:06.9]} 80... Nc4 {[%clk 0:00:03.5]} 81. d5 {[%clk
0:00:07.4]} 81... Ne3 {[%clk 0:00:03.5]} 82. d6 {[%clk 0:00:07.5]} 1-0

[Event "*** SCC Grand Prix: Titled Tuesday Blitz"]
[Site "Chess.com"]
[Date "2020.07.14"]
[Round "5"]
[White "Nayemhaque22"]
[Black "LastHeroJr"]
[Result "0-1"]
[WhiteElo "2219"]
[BlackElo "2454"]
[TimeControl "180+1"]
[EndTime "10:58:17 PDT"]
[Termination "LastHeroJr won on time"]

1. e4 {[%clk 0:03:00.9]} 1... Nc6 {[%clk 0:02:59]} 2. Nf3 {[%clk 0:02:59.1]}
2... d6 {[%clk 0:02:57.8]} 3. d4 {[%clk 0:02:56.5]} 3... Nf6 {[%clk 0:02:57.9]}
4. Bd3 {[%clk 0:02:55.2]} 4... Nb4 {[%clk 0:02:50.3]} 5. c3 {[%clk 0:02:49.2]}
5... Nxd3+ {[%clk 0:02:49.8]} 6. Qxd3 {[%clk 0:02:50.1]} 6... e6 {[%clk
0:02:40.9]} 7. Bg5 {[%clk 0:02:46.3]} 7... Be7 {[%clk 0:02:40.3]} 8. Nbd2 {[%clk
0:02:45.5]} 8... O-O {[%clk 0:02:33.5]} 9. O-O-O {[%clk 0:02:44.5]} 9... b6
{[%clk 0:02:04.1]} 10. h3 {[%clk 0:02:41.7]} 10... Bb7 {[%clk 0:02:04]} 11. Bxf6
{[%clk 0:02:30.9]} 11... Bxf6 {[%clk 0:02:02.8]} 12. g4 {[%clk 0:02:30.6]} 12...
Bg5 {[%clk 0:01:39.3]} 13. Nxg5 {[%clk 0:02:25.7]} 13... Qxg5 {[%clk 0:01:40.2]}
14. Rde1 {[%clk 0:02:14]} 14... Qf4 {[%clk 0:01:31]} 15. Qe3 {[%clk 0:02:09.1]}
15... Qxe3 {[%clk 0:01:27.9]} 16. Rxe3 {[%clk 0:02:10]} 16... f5 {[%clk
0:01:28.2]} 17. gxf5 {[%clk 0:02:08.6]} 17... exf5 {[%clk 0:01:28.5]} 18. Rg1
{[%clk 0:02:03.4]} 18... fxe4 {[%clk 0:01:25.7]} 19. Nxe4 {[%clk 0:01:54.8]}
19... Bxe4 {[%clk 0:01:25.5]} 20. Rxe4 {[%clk 0:01:53.9]} 20... Rxf2 {[%clk
0:01:25.9]} 21. Re7 {[%clk 0:01:46.5]} 21... Rf7 {[%clk 0:01:25.6]} 22. Rge1
{[%clk 0:01:46.3]} 22... Raf8 {[%clk 0:01:14.5]} 23. a4 {[%clk 0:01:36.7]} 23...
g6 {[%clk 0:01:12.8]} 24. a5 {[%clk 0:01:28.2]} 24... bxa5 {[%clk 0:01:11.5]}
25. Kc2 {[%clk 0:01:22.7]} 25... Kg7 {[%clk 0:01:08.4]} 26. R7e3 {[%clk
0:01:17.4]} 26... Rf2+ {[%clk 0:01:06]} 27. Kb3 {[%clk 0:01:16.1]} 27... Rb8+
{[%clk 0:01:05]} 28. Kc4 {[%clk 0:01:13.4]} 28... Rbxb2 {[%clk 0:00:55.8]} 29.
Ra1 {[%clk 0:01:11.1]} 29... Rf7 {[%clk 0:00:30.6]} 30. Rxa5 {[%clk 0:01:09.5]}
30... Rb7 {[%clk 0:00:31.1]} 31. h4 {[%clk 0:01:07.9]} 31... h6 {[%clk
0:00:30.6]} 32. h5 {[%clk 0:01:06.1]} 32... gxh5 {[%clk 0:00:25.6]} 33. Rg3+
{[%clk 0:01:00.1]} 33... Kh7 {[%clk 0:00:24.3]} 34. Rxh5 {[%clk 0:01:00.1]}
34... c6 {[%clk 0:00:22.9]} 35. Re3 {[%clk 0:00:49]} 35... Rbe7 {[%clk
0:00:20.9]} 36. Reh3 {[%clk 0:00:44.8]} 36... Rf6 {[%clk 0:00:21.2]} 37. Rh1
{[%clk 0:00:39.7]} 37... d5+ {[%clk 0:00:17.9]} 38. Kc5 {[%clk 0:00:37.3]} 38...
Rb7 {[%clk 0:00:17.9]} 39. c4 {[%clk 0:00:33.5]} 39... dxc4 {[%clk 0:00:18.8]}
40. Kxc4 {[%clk 0:00:31.9]} 40... Rd7 {[%clk 0:00:18.6]} 41. Ra1 {[%clk
0:00:26.1]} 41... Rf4 {[%clk 0:00:16.6]} 42. Rd1 {[%clk 0:00:23.6]} 42... Kg6
{[%clk 0:00:15.7]} 43. Rc5 {[%clk 0:00:22.7]} 43... Rd6 {[%clk 0:00:12.8]} 44.
Rg1+ {[%clk 0:00:20.7]} 44... Kf6 {[%clk 0:00:13]} 45. Rd1 {[%clk 0:00:19.4]}
45... Kg6 {[%clk 0:00:07.1]} 46. Rg1+ {[%clk 0:00:18.5]} 46... Kf7 {[%clk
0:00:07.4]} 47. Rd1 {[%clk 0:00:17.5]} 47... Ke7 {[%clk 0:00:04.4]} 48. Ra5
{[%clk 0:00:16.2]} 48... Rd7 {[%clk 0:00:03.7]} 49. Re5+ {[%clk 0:00:15.9]}
49... Kd6 {[%clk 0:00:03.3]} 50. Rh5 {[%clk 0:00:15]} 50... Rf6 {[%clk
0:00:03.1]} 51. Rdh1 {[%clk 0:00:13.6]} 51... Rh7 {[%clk 0:00:02.4]} 52. Ra5
{[%clk 0:00:12.3]} 52... Rg6 {[%clk 0:00:02.6]} 53. Rhh5 {[%clk 0:00:08.2]}
53... Rg2 {[%clk 0:00:02.4]} 54. Rhc5 {[%clk 0:00:07.2]} 54... Rc2+ {[%clk
0:00:02.6]} 55. Kd3 {[%clk 0:00:06.3]} 55... Rxc5 {[%clk 0:00:03.5]} 56. dxc5+
{[%clk 0:00:05.9]} 56... Kd5 {[%clk 0:00:03.3]} 57. Kc3 {[%clk 0:00:05.9]} 57...
h5 {[%clk 0:00:03.7]} 58. Kb4 {[%clk 0:00:05.5]} 58... h4 {[%clk 0:00:03.5]} 59.
Ra1 {[%clk 0:00:05.5]} 59... h3 {[%clk 0:00:03.9]} 60. Rd1+ {[%clk 0:00:05.1]}
60... Ke4 {[%clk 0:00:04.3]} 0-1

[Event "*** SCC Grand Prix: Titled Tuesday Blitz"]
[Site "Chess.com"]
[Date "2020.07.14"]
[Round "5"]
[White "Duong57"]
[Black "KonstantinB_1983"]
[Result "1/2-1/2"]
[WhiteElo "2239"]
[BlackElo "2419"]
[TimeControl "180+1"]
[EndTime "10:58:17 PDT"]
[Termination "Game drawn - timeout vs insufficient material"]

1. d4 {[%clk 0:03:00.9]} 1... d5 {[%clk 0:02:59.6]} 2. c4 {[%clk 0:03:01]} 2...
c6 {[%clk 0:02:59]} 3. Nf3 {[%clk 0:03:01]} 3... Nf6 {[%clk 0:02:58.3]} 4. Nc3
{[%clk 0:03:01]} 4... a6 {[%clk 0:02:57]} 5. c5 {[%clk 0:03:00.7]} 5... Bf5
{[%clk 0:02:56.1]} 6. Qb3 {[%clk 0:03:00.2]} 6... Qc8 {[%clk 0:02:53.6]} 7. Nh4
{[%clk 0:02:59.7]} 7... Bg6 {[%clk 0:02:51.1]} 8. e3 {[%clk 0:02:50.4]} 8...
Nbd7 {[%clk 0:02:47.7]} 9. Na4 {[%clk 0:02:22.6]} 9... e6 {[%clk 0:02:44.6]} 10.
Nxg6 {[%clk 0:01:59.3]} 10... hxg6 {[%clk 0:02:43.4]} 11. Bd3 {[%clk 0:01:59.8]}
11... Be7 {[%clk 0:02:42.2]} 12. Bd2 {[%clk 0:01:57.4]} 12... Bd8 {[%clk
0:02:39.7]} 13. Qc2 {[%clk 0:01:47.9]} 13... Bc7 {[%clk 0:02:38.1]} 14. h3
{[%clk 0:01:46.9]} 14... e5 {[%clk 0:02:37.1]} 15. b4 {[%clk 0:01:43.2]} 15...
Qd8 {[%clk 0:02:20.8]} 16. Nc3 {[%clk 0:01:34.1]} 16... Qe7 {[%clk 0:02:15.8]}
17. O-O {[%clk 0:01:30.4]} 17... g5 {[%clk 0:01:59.4]} 18. f3 {[%clk 0:01:14.4]}
18... Kf8 {[%clk 0:01:38.1]} 19. a4 {[%clk 0:01:10.9]} 19... b6 {[%clk
0:01:22.8]} 20. Ne2 {[%clk 0:00:46.9]} 20... bxc5 {[%clk 0:01:13.2]} 21. bxc5
{[%clk 0:00:46.1]} 21... g6 {[%clk 0:01:05.2]} 22. e4 {[%clk 0:00:27.9]} 22...
exd4 {[%clk 0:01:02.5]} 23. Bxg5 {[%clk 0:00:27.2]} 23... Kg7 {[%clk 0:00:58.8]}
24. exd5 {[%clk 0:00:20.3]} 24... cxd5 {[%clk 0:00:57.4]} 25. Rae1 {[%clk
0:00:20.8]} 25... Qxc5 {[%clk 0:00:48.7]} 26. Rc1 {[%clk 0:00:21]} 26... Qxc2
{[%clk 0:00:35.9]} 27. Rxc2 {[%clk 0:00:21.9]} 27... Bb6 {[%clk 0:00:28.6]} 28.
Rc6 {[%clk 0:00:21.7]} 28... Rab8 {[%clk 0:00:21.3]} 29. Rfc1 {[%clk 0:00:21.2]}
29... a5 {[%clk 0:00:19.3]} 30. Kf2 {[%clk 0:00:20.4]} 30... Rhe8 {[%clk
0:00:17.3]} 31. h4 {[%clk 0:00:18.4]} 31... Re6 {[%clk 0:00:16.9]} 32. Rxe6
{[%clk 0:00:17.9]} 32... fxe6 {[%clk 0:00:17.1]} 33. Rc6 {[%clk 0:00:18.5]}
33... Kf7 {[%clk 0:00:17.3]} 34. Nf4 {[%clk 0:00:17.8]} 34... Ne5 {[%clk
0:00:16.7]} 35. Bxf6 {[%clk 0:00:17.4]} 35... Nxc6 {[%clk 0:00:15.5]} 36. Bg5
{[%clk 0:00:16.1]} 36... Kg7 {[%clk 0:00:14.7]} 37. Bxg6 {[%clk 0:00:14.8]}
37... e5 {[%clk 0:00:13.9]} 38. h5 {[%clk 0:00:12.7]} 38... exf4 {[%clk
0:00:13.3]} 39. Bd3 {[%clk 0:00:13.1]} 39... Bc5 {[%clk 0:00:12.4]} 40. h6+
{[%clk 0:00:13.5]} 40... Kf7 {[%clk 0:00:11.6]} 41. h7 {[%clk 0:00:12.8]} 41...
Rh8 {[%clk 0:00:11.2]} 42. Bxf4 {[%clk 0:00:12.9]} 42... Be7 {[%clk 0:00:10.9]}
43. Bc7 {[%clk 0:00:12.6]} 43... Bf6 {[%clk 0:00:10.9]} 44. Bb5 {[%clk
0:00:12.4]} 44... Kg7 {[%clk 0:00:10.7]} 45. Bxc6 {[%clk 0:00:12.5]} 45... Rxh7
{[%clk 0:00:10.4]} 46. Bxd5 {[%clk 0:00:12.4]} 46... Rh1 {[%clk 0:00:10]} 47.
Be4 {[%clk 0:00:12.4]} 47... Rc1 {[%clk 0:00:09.9]} 48. Bxa5 {[%clk 0:00:12.4]}
48... Rc4 {[%clk 0:00:09.3]} 49. Bd2 {[%clk 0:00:11.3]} 49... Rxa4 {[%clk
0:00:08.8]} 50. f4 {[%clk 0:00:11.7]} 50... Ra2 {[%clk 0:00:08.5]} 51. Ke2
{[%clk 0:00:12]} 51... Be7 {[%clk 0:00:08.2]} 52. Kd3 {[%clk 0:00:12.5]} 52...
Bc5 {[%clk 0:00:08.1]} 53. g4 {[%clk 0:00:11.6]} 53... Ra3+ {[%clk 0:00:08.2]}
54. Kc4 {[%clk 0:00:12]} 54... Ba7 {[%clk 0:00:08.4]} 55. Bb4 {[%clk 0:00:12.2]}
55... Rg3 {[%clk 0:00:07.7]} 56. g5 {[%clk 0:00:11.9]} 56... Rg4 {[%clk
0:00:07.7]} 57. Bd6 {[%clk 0:00:12.1]} 57... Rg1 {[%clk 0:00:07.1]} 58. Be5+
{[%clk 0:00:12.4]} 58... Kf7 {[%clk 0:00:07.2]} 59. g6+ {[%clk 0:00:12.5]} 59...
Ke7 {[%clk 0:00:06.8]} 60. f5 {[%clk 0:00:12.2]} 60... d3 {[%clk 0:00:06.4]} 61.
f6+ {[%clk 0:00:12.4]} 61... Ke6 {[%clk 0:00:05.7]} 62. Bd5+ {[%clk 0:00:11.1]}
62... Kxe5 {[%clk 0:00:03.1]} 63. f7 {[%clk 0:00:11.6]} 63... Rf1 {[%clk
0:00:02.9]} 64. f8=Q {[%clk 0:00:08]} 64... Rxf8 {[%clk 0:00:01.7]} 65. g7
{[%clk 0:00:08.9]} 65... Rc8+ {[%clk 0:00:02.1]} 66. Kxd3 {[%clk 0:00:08.7]}
66... Kxd5 {[%clk 0:00:02]} 67. g8=Q+ {[%clk 0:00:08.6]} 67... Rxg8 {[%clk
0:00:02.2]} 68. Kd2 {[%clk 0:00:08.8]} 68... Rg7 {[%clk 0:00:02.6]} 69. Kd3
{[%clk 0:00:08.5]} 69... Rg6 {[%clk 0:00:02.7]} 70. Ke2 {[%clk 0:00:08.8]} 70...
Rg4 {[%clk 0:00:02.8]} 71. Kf3 {[%clk 0:00:09.7]} 71... Re4 {[%clk 0:00:02.9]}
72. Kg2 {[%clk 0:00:09.2]} 72... Ke5 {[%clk 0:00:03.1]} 73. Kf3 {[%clk
0:00:09.6]} 73... Kf5 {[%clk 0:00:03.3]} 74. Kg2 {[%clk 0:00:09.7]} 74... Kg4
{[%clk 0:00:03]} 75. Kf1 {[%clk 0:00:09.7]} 75... Re3 {[%clk 0:00:03]} 76. Kf2
{[%clk 0:00:09.4]} 76... Rd3+ {[%clk 0:00:02.4]} 77. Ke2 {[%clk 0:00:10.3]}
77... Re3+ {[%clk 0:00:02.3]} 78. Kf2 {[%clk 0:00:10.7]} 78... Kf4 {[%clk
0:00:02]} 79. Kf1 {[%clk 0:00:11.6]} 79... Kf3 {[%clk 0:00:01.8]} 80. Kg1 {[%clk
0:00:11.7]} 80... Re2+ {[%clk 0:00:01.3]} 81. Kh1 {[%clk 0:00:11.7]} 81... Bb8
{[%clk 0:00:01.1]} 82. Kg1 {[%clk 0:00:11.7]} 1/2-1/2

[Event "*** SCC Grand Prix: Titled Tuesday Blitz"]
[Site "Chess.com"]
[Date "2020.07.14"]
[Round "5"]
[White "Harsha_Bharathakoti"]
[Black "Meri-Arabidze"]
[Result "1-0"]
[WhiteElo "2783"]
[BlackElo "2561"]
[TimeControl "180+1"]
[EndTime "10:58:20 PDT"]
[Termination "Harsha_Bharathakoti won by resignation"]

1. d4 {[%clk 0:03:00.9]} 1... d5 {[%clk 0:02:59.6]} 2. c4 {[%clk 0:03:01.4]}
2... dxc4 {[%clk 0:03:00]} 3. e4 {[%clk 0:03:01.4]} 3... Nc6 {[%clk 0:02:59.2]}
4. Nf3 {[%clk 0:02:59]} 4... Bg4 {[%clk 0:02:59]} 5. d5 {[%clk 0:02:59.5]} 5...
Ne5 {[%clk 0:02:58.3]} 6. Bf4 {[%clk 0:02:31.5]} 6... Bxf3 {[%clk 0:02:57.4]} 7.
gxf3 {[%clk 0:02:32.3]} 7... Ng6 {[%clk 0:02:57.5]} 8. Be3 {[%clk 0:02:29.1]}
8... e5 {[%clk 0:02:55.8]} 9. dxe6 {[%clk 0:02:03.1]} 9... Qxd1+ {[%clk
0:02:52.6]} 10. Kxd1 {[%clk 0:02:04]} 10... fxe6 {[%clk 0:02:49]} 11. Bxc4
{[%clk 0:02:03.5]} 11... O-O-O+ {[%clk 0:02:35.9]} 12. Ke2 {[%clk 0:02:03.4]}
12... e5 {[%clk 0:02:36]} 13. h4 {[%clk 0:02:03.5]} 13... N8e7 {[%clk
0:02:26.8]} 14. Nc3 {[%clk 0:01:50.1]} 14... Nc6 {[%clk 0:02:23.5]} 15. Nd5
{[%clk 0:01:50.2]} 15... Bd6 {[%clk 0:02:16.5]} 16. Rac1 {[%clk 0:01:42.5]}
16... Nf4+ {[%clk 0:02:09.9]} 17. Bxf4 {[%clk 0:01:41.9]} 17... exf4 {[%clk
0:02:10.8]} 18. Kf1 {[%clk 0:01:33.3]} 18... Be5 {[%clk 0:01:58.7]} 19. b3
{[%clk 0:01:25.5]} 19... Kb8 {[%clk 0:01:55.2]} 20. Kg2 {[%clk 0:01:24.6]} 20...
g6 {[%clk 0:01:54.1]} 21. h5 {[%clk 0:01:22.4]} 21... g5 {[%clk 0:01:40.9]} 22.
Kh3 {[%clk 0:01:15.7]} 22... h6 {[%clk 0:01:35.8]} 23. Kg4 {[%clk 0:01:13.8]}
23... Bb2 {[%clk 0:01:32.7]} 24. Rc2 {[%clk 0:01:13.1]} 24... Ne5+ {[%clk
0:01:31.6]} 25. Kh3 {[%clk 0:01:13.4]} 25... Bd4 {[%clk 0:01:30.6]} 26. Be2
{[%clk 0:01:13.6]} 26... Rh7 {[%clk 0:01:18.8]} 27. Nf6 {[%clk 0:01:07]} 27...
Rf7 {[%clk 0:01:15.6]} 28. Ng4 {[%clk 0:01:06.6]} 28... Nxg4 {[%clk 0:01:15.4]}
29. Kxg4 {[%clk 0:01:07.5]} 29... Rf6 {[%clk 0:01:08.9]} 30. Rd1 {[%clk
0:01:01.1]} 30... Rfd6 {[%clk 0:01:05.9]} 31. Bc4 {[%clk 0:00:59.2]} 31... c5
{[%clk 0:01:04.6]} 32. Bd5 {[%clk 0:00:56.4]} 32... a5 {[%clk 0:01:00.9]} 33. a3
{[%clk 0:00:55.7]} 33... b6 {[%clk 0:00:59]} 34. b4 {[%clk 0:00:56]} 34... axb4
{[%clk 0:00:48.8]} 35. axb4 {[%clk 0:00:56.9]} 35... R8d7 {[%clk 0:00:38]} 36.
Rb1 {[%clk 0:00:43.8]} 36... Kc7 {[%clk 0:00:27]} 37. Ra2 {[%clk 0:00:40.4]}
37... Kd8 {[%clk 0:00:25.5]} 38. Ra8+ {[%clk 0:00:40.7]} 38... Ke7 {[%clk
0:00:25.5]} 39. bxc5 {[%clk 0:00:26.1]} 39... Bxc5 {[%clk 0:00:25.4]} 40. Rb2
{[%clk 0:00:25.5]} 40... Rc7 {[%clk 0:00:22.3]} 41. Rh8 {[%clk 0:00:22.2]} 41...
Bd4 {[%clk 0:00:18.3]} 42. Rh7+ {[%clk 0:00:22.6]} 42... Kd8 {[%clk 0:00:18.9]}
43. Rxc7 {[%clk 0:00:12.8]} 43... Kxc7 {[%clk 0:00:19.8]} 44. Rc2+ {[%clk
0:00:13.6]} 44... Bc5 {[%clk 0:00:20.2]} 45. Kf5 {[%clk 0:00:14.5]} 45... Kd7
{[%clk 0:00:19.5]} 46. Bc4 {[%clk 0:00:12.7]} 46... Ke7 {[%clk 0:00:19.2]} 47.
e5 {[%clk 0:00:12.9]} 47... Rd1 {[%clk 0:00:19]} 48. Ra2 {[%clk 0:00:12.3]}
48... Rc1 {[%clk 0:00:15.7]} 49. Ra7+ {[%clk 0:00:12.2]} 49... Kd8 {[%clk
0:00:15.8]} 50. Bd5 {[%clk 0:00:11.5]} 50... Bxf2 {[%clk 0:00:14.6]} 51. e6
{[%clk 0:00:08.8]} 51... Bc5 {[%clk 0:00:14.5]} 52. Rd7+ {[%clk 0:00:06]} 52...
Kc8 {[%clk 0:00:14.4]} 53. Rh7 {[%clk 0:00:05.1]} 53... Re1 {[%clk 0:00:14.4]}
54. Rxh6 {[%clk 0:00:04.9]} 54... Bd6 {[%clk 0:00:14.4]} 55. Be4 {[%clk
0:00:04.6]} 55... g4 {[%clk 0:00:14]} 56. Kxg4 {[%clk 0:00:04.4]} 56... Rg1+
{[%clk 0:00:13.1]} 57. Kf5 {[%clk 0:00:04.8]} 57... b5 {[%clk 0:00:13.4]} 58.
Rh8+ {[%clk 0:00:04.8]} 58... Kc7 {[%clk 0:00:13.7]} 59. h6 {[%clk 0:00:05.4]}
59... b4 {[%clk 0:00:14.1]} 60. h7 {[%clk 0:00:05.8]} 60... Rh1 {[%clk
0:00:14.6]} 61. Kg4 {[%clk 0:00:06.3]} 61... Rg1+ {[%clk 0:00:14.2]} 62. Kh3
{[%clk 0:00:06.3]} 62... Rh1+ {[%clk 0:00:14.1]} 63. Kg2 {[%clk 0:00:06.8]}
63... Rh5 {[%clk 0:00:11.5]} 64. Ra8 {[%clk 0:00:06.6]} 64... Be5 {[%clk
0:00:11.5]} 65. Ra5 {[%clk 0:00:07.2]} 65... Rg5+ {[%clk 0:00:06.8]} 66. Kf1
{[%clk 0:00:07.3]} 66... Kd6 {[%clk 0:00:05.1]} 67. e7 {[%clk 0:00:07.7]} 67...
Kxe7 {[%clk 0:00:04.2]} 68. Rxe5+ {[%clk 0:00:08.3]} 68... Rxe5 {[%clk
0:00:04.1]} 69. h8=Q {[%clk 0:00:08.9]} 69... Rb5 {[%clk 0:00:03.4]} 70. Qg7+
{[%clk 0:00:08.9]} 70... Kd6 {[%clk 0:00:03.2]} 71. Qf6+ {[%clk 0:00:09.6]}
71... Kc5 {[%clk 0:00:03.7]} 72. Qe5+ {[%clk 0:00:09.7]} 72... Kb6 {[%clk
0:00:03.1]} 73. Qd4+ {[%clk 0:00:10.4]} 73... Kc7 {[%clk 0:00:02]} 74. Qc4+
{[%clk 0:00:10.5]} 74... Kb6 {[%clk 0:00:02.1]} 75. Qc6+ {[%clk 0:00:10]} 75...
Ka5 {[%clk 0:00:02.5]} 76. Qc7+ {[%clk 0:00:10.6]} 76... Ka4 {[%clk 0:00:02.2]}
77. Bc6 {[%clk 0:00:09.1]} 77... b3 {[%clk 0:00:02.2]} 78. Bxb5+ {[%clk
0:00:09.4]} 1-0